fUST/lending_fUST_20240122
["ID","MTS","AMOUNT","RATE_DAILY","PERIOD"]
[312437335,1705876241287,-500.0,0.00027671,2]
[312437336,1705876241297,-500.0,0.00027671,2]
[312437337,1705876241306,-500.0,0.00027671,2]
[312437338,1705876241316,-500.0,0.00027671,2]
[312437339,1705876241327,-500.0,0.00027671,2]
[312437340,1705876241338,-507.59096993,0.00027671,2]
[312437341,1705876241348,-544.43,0.00027671,2]
[312437342,1705876241358,-1000.0,0.00027671,2]
[312437343,1705876241367,-1159.53,0.00027671,2]
[312437344,1705876241378,-500.0,0.00027671,2]
[312437345,1705876241388,-186.61271067,0.00027671,2]
[312437346,1705876241398,-388.68371797,0.00027671,2]
[312437347,1705876241408,-500.0,0.00027671,2]
[312437348,1705876241419,-500.0,0.00027671,2]
[312437349,1705876241428,-500.0,0.00027671,2]
[312437350,1705876241438,-708.28,0.00027671,2]
[312437351,1705876241447,-500.0,0.00027671,2]
[312437352,1705876241456,-768.72,0.00027671,2]
[312437353,1705876241466,-500.0,0.00027671,2]
[312437354,1705876241475,-500.0,0.00027671,2]
[312437355,1705876241485,-511.59,0.00027671,2]
[312437356,1705876241494,-858.9,0.00027671,2]
[312437357,1705876241504,-547.42,0.00027671,2]
[312437358,1705876241513,-500.0,0.00027671,2]
[312437359,1705876241522,-500.0,0.00027671,2]
[312437360,1705876241531,-500.0,0.00027671,2]
[312437361,1705876241540,-1572.62,0.00027671,2]
[312437362,1705876241549,-500.0,0.00027671,2]
[312437363,1705876241559,-500.0,0.00027671,2]
[312437364,1705876241569,-500.0,0.00027671,2]
[312437365,1705876241578,-631.88,0.00027671,2]
[312437366,1705876241587,-500.0,0.00027671,2]
[312437367,1705876241596,-1283.39,0.00027671,2]
[312437368,1705876241605,-500.0,0.00027671,2]
[312437369,1705876241614,-522.84,0.00027671,2]
[312437370,1705876241623,-500.0,0.00027671,2]
[312437371,1705876241632,-500.0,0.00027671,2]
[312437372,1705876241641,-500.0,0.00027671,2]
[312437373,1705876241651,-500.0,0.00027671,2]
[312437374,1705876241660,-3566.95,0.00027671,2]
[312437375,1705876241669,-15083.3,0.00027671,2]
[312437376,1705876241678,-677.31,0.00027671,2]
[312437377,1705876241687,-500.0,0.00027671,2]
[312437378,1705876241697,-500.0,0.00027671,2]
[312437379,1705876241706,-10271.59,0.00027671,2]
[312437380,1705876241716,-343.50194126,0.00027671,2]
[312437381,1705876241725,-990.88,0.00027671,2]
[312437382,1705876241735,-500.0,0.00027671,2]
[312437383,1705876241744,-1392.84,0.00027671,2]
[312437384,1705876241753,-500.0,0.00027671,2]
[312437385,1705876241762,-790.5,0.00027671,2]
[312437386,1705876241771,-747.94,0.00027671,2]
[312437387,1705876241779,-716.3,0.00027671,2]
[312437388,1705876241788,-500.0,0.00027671,2]
[312437389,1705876241797,-500.0,0.00027671,2]
[312437391,1705876241806,-500.0,0.00027671,2]
[312437392,1705876241824,-962.6,0.00027671,2]
[312437394,1705876241833,-700.45,0.00027671,2]
[312437395,1705876241842,-5940.14,0.00027671,2]
[312437396,1705876241852,-767.81,0.00027671,2]
[312437398,1705876241861,-500.0,0.00027671,2]
[312437399,1705876241870,-6772.85,0.00027671,2]
[312437401,1705876241879,-500.0,0.00027671,2]
[312437403,1705876241888,-865.45,0.00027671,2]
[312437405,1705876241897,-1323.56,0.00027671,2]
[312437407,1705876241906,-1908.97,0.00027671,2]
[312437409,1705876241918,-500.0,0.00027671,2]
[312437411,1705876241927,-500.0,0.00027671,2]
[312437413,1705876241936,-500.0,0.00027671,2]
[312437415,1705876241945,-500.0,0.00027671,2]
[312437417,1705876241954,-500.0723576,0.00027671,2]
[312437419,1705876241964,-500.0,0.00027671,2]
[312437421,1705876241973,-453.82432863,0.00027671,2]
[312437423,1705876241982,-2186.16,0.00027671,2]
[312437425,1705876241992,-4090.78,0.00027671,2]
[312437427,1705876242002,-234.05683702,0.00027671,2]
[312437429,1705876242011,-500.0,0.00027671,2]
[312437431,1705876242020,-1512.5,0.00027671,2]
[312437433,1705876242029,-500.0,0.00027671,2]
[312437435,1705876242038,-5257.8,0.00027671,2]
[312437436,1705876242047,-500.0,0.00027671,2]
[312437438,1705876242057,-500.0,0.00027671,2]
[312437440,1705876242066,-500.0,0.00027671,2]
[312437442,1705876242075,-1119.28,0.00027671,2]
[312437444,1705876242084,-9118.80664487,0.0002775,4]
[312437446,1705876242094,-24284.76281453,0.000278,2]
[312437448,1705876242103,-1846.22396676,0.00027805,3]
[312437450,1705876242112,-9444.5564713,0.00027805,5]
[312437457,1705876242162,-2063.61847012,0.00027805,5]
[312437475,1705876242332,-1899.19,0.00027387,3]
[312437477,1705876242341,-500.0,0.00027397,2]
[312437479,1705876242350,-500.0,0.00027397,2]
[312437481,1705876242360,-500.0,0.00027671,2]
[312437483,1705876242370,-13775.49205235,0.00027805,5]
[312437485,1705876242379,-984.98273392,0.00027805,3]
[312437487,1705876242388,-9233.71333669,0.00027806,5]
[312437608,1705876243324,-500.0,0.00027397,2]
[312437610,1705876243335,-64.96851364,0.00027397,2]
[312437848,1705876246264,-378.0674443,0.00024902,2]
[312437850,1705876246273,-341.06380299,0.00027397,2]
[312445456,1705877079936,-500.0,0.00043309,120]
[312445457,1705877079960,-37040.16729768,0.00043309,120]
[312445458,1705877079984,-194.0,0.00043309,120]
[312445459,1705877080009,-23004.50605332,0.00043309,30]
[312445460,1705877080034,-236.55,0.00043309,120]
[312445461,1705877080057,-310.73926759,0.00043309,60]
[312445462,1705877080081,-1253.28010686,0.00043309,120]
[312445463,1705877080105,-2729.0,0.00043309,31]
[312445464,1705877080128,-2729.0,0.00043309,32]
[312445465,1705877080150,-200.0,0.00043309,30]
[312445466,1705877083878,-1000.0,0.0003,30]
[312445467,1705877083916,-150.74373565,0.00030898,30]
[312445468,1705877083944,-1000.0,0.00031,31]
[312445469,1705877083977,-1000.0,0.00032,32]
[312445470,1705877084013,-176.13394,0.00032877,61]
[312445471,1705877084036,-176.13394,0.00032877,120]
[312445472,1705877084059,-1000.0,0.00033,33]
[312445473,1705877084088,-1000.0,0.00034,34]
[312445474,1705877084112,-5760.84381744,0.00035,45]
[312445475,1705877084135,-1000.0,0.00035,35]
[312445476,1705877084159,-2500.0,0.00035,30]
[312445477,1705877084186,-234.288969,0.00035616,120]
[312445478,1705877084209,-1000.0,0.00036,36]
[312445479,1705877084233,-318.0,0.00036,120]
[312445480,1705877084256,-1000.0,0.00036,36]
[312445481,1705877084280,-1000.0,0.00037,37]
[312445482,1705877084303,-1000.0,0.00037,37]
[312445483,1705877084328,-1000.0,0.00038,38]
[312445484,1705877084351,-1000.0,0.00038,39]
[312445485,1705877084377,-1205.9498852,0.00038667,30]
[312445486,1705877084400,-1000.0,0.00039,39]
[312445487,1705877084422,-1000.0,0.00039,39]
[312445488,1705877084446,-14708.43798455,0.00039196,60]
[312445489,1705877084470,-245.17457541,0.000396,30]
[312445490,1705877084493,-322.99438434,0.0004,120]
[312445491,1705877084516,-2500.0,0.0004,30]
[312445492,1705877084539,-1817.67450247,0.0004,30]
[312445493,1705877084562,-1997.78,0.0004,32]
[312445494,1705877084584,-2000.0,0.0004,32]
[312445495,1705877084606,-1000.0,0.0004,40]
[312445496,1705877084629,-200.0,0.00040096,30]
[312445497,1705877084652,-348.0,0.00040096,30]
[312445498,1705877084675,-500.0,0.000403,30]
[312445499,1705877084697,-1000.0,0.000406,30]
[312445500,1705877084720,-1000.0,0.00041,41]
[312445501,1705877084743,-275.74261843,0.00041,30]
[312445502,1705877084765,-154.78330338,0.00041095,60]
[312445503,1705877084788,-500.0,0.00041095,31]
[312445504,1705877084810,-500.0,0.00041095,30]
[312445505,1705877084832,-500.0,0.00041095,30]
[312445506,1705877084855,-500.0,0.00041095,30]
[312445507,1705877084877,-500.0,0.00041095,30]
[312445508,1705877084899,-235.60349357,0.00041095,30]
[312445509,1705877084922,-194.005696,0.00041296,30]
[312445510,1705877084945,-773.55840336,0.00041309,120]
[312445511,1705877084968,-500.0,0.00041369,31]
[312445512,1705877084992,-189.27438636,0.000414,45]
[312445513,1705877085016,-500.0,0.00041643,31]
[312445514,1705877085039,-1088.98,0.00041669,30]
[312445515,1705877085062,-194.005696,0.00041805,30]
[312445516,1705877085085,-500.0,0.00041917,31]
[312445517,1705877085108,-1000.0,0.00042,42]
[312445518,1705877085130,-9595.73924814,0.00042,30]
[312445519,1705877085152,-50000.0,0.00042,30]
[312445520,1705877085175,-8861.54,0.00042,40]
[312445521,1705877085203,-26879.81306616,0.00042,32]
[312445522,1705877085226,-11587.4798753,0.00042,120]
[312445523,1705877085249,-1000.0,0.00042,42]
[312445524,1705877085274,-522.17179015,0.00042095,30]
[312445525,1705877085297,-500.0,0.00042095,30]
[312445526,1705877085320,-500.0,0.00042095,30]
[312445527,1705877085343,-488.0522561,0.00042095,30]
[312445528,1705877085366,-624.11383689,0.00042095,30]
[312445529,1705877085389,-508.62654071,0.00042095,30]
[312445530,1705877085413,-500.0,0.00042095,30]
[312445531,1705877085436,-462.6100081,0.00042095,30]
[312445532,1705877085460,-500.0,0.00042095,30]
[312445533,1705877085484,-500.0,0.00042095,30]
[312445534,1705877085507,-500.0,0.00042095,30]
[312445535,1705877085531,-500.0,0.00042095,30]
[312445536,1705877085555,-301.54093324,0.00042095,30]
[312445537,1705877085579,-500.0,0.00042095,30]
[312445538,1705877085602,-500.0,0.00042095,30]
[312445539,1705877085625,-500.0,0.00042095,30]
[312445540,1705877085649,-500.0,0.00042095,30]
[312445541,1705877085674,-500.0,0.00042095,30]
[312445542,1705877085697,-500.0,0.00042095,30]
[312445543,1705877085722,-500.0,0.00042095,30]
[312445544,1705877085745,-500.0,0.00042095,30]
[312445545,1705877085769,-651.60443776,0.00042095,30]
[312445546,1705877085793,-500.0,0.00042095,30]
[312445547,1705877085816,-223.78791006,0.00042095,30]
[312445548,1705877085840,-500.0,0.00042095,30]
[312445549,1705877085863,-500.0,0.00042095,30]
[312445550,1705877085887,-367.69395549,0.00042095,30]
[312445551,1705877085911,-500.0,0.00042095,30]
[312445552,1705877086064,-500.0,0.00042095,30]
[312445553,1705877086088,-347.0775822,0.00042095,30]
[312445554,1705877086111,-560.64177511,0.00042095,30]
[312445555,1705877086134,-300.0,0.00042095,30]
[312445556,1705877086158,-203.45061629,0.00042095,30]
[312445557,1705877086184,-200.0,0.00042095,30]
[312445558,1705877086206,-200.0,0.00042095,30]
[312445559,1705877086232,-300.0,0.00042095,30]
[312445560,1705877086255,-195.22090244,0.00042095,30]
[312445561,1705877086279,-200.0,0.00042095,30]
[312445562,1705877086303,-200.0,0.00042095,30]
[312445563,1705877086326,-425.53671825,0.00042095,30]
[312445564,1705877086349,-155.44288851,0.00042095,30]
[312445565,1705877086371,-500.0,0.00042095,30]
[312445566,1705877086394,-500.0,0.00042095,30]
[312445567,1705877086417,-276.64105647,0.00042095,30]
[312445568,1705877086440,-500.0,0.00042095,30]
[312445569,1705877086463,-648.15834565,0.00042095,30]
[312445570,1705877086487,-500.0,0.00042095,30]
[312445571,1705877086511,-621.56151896,0.00042095,30]
[312445572,1705877086534,-166.31001175,0.00042095,30]
[312445573,1705877086558,-616.91602438,0.00042095,30]
[312445574,1705877086580,-275.84078038,0.00042163,30]
[312445575,1705877086602,-555.69536749,0.00042164,30]
[312445576,1705877086625,-200.0,0.00042165,30]
[312445577,1705877086648,-200.0,0.00042167,30]
[312445578,1705877086671,-555.69536749,0.00042168,30]
[312445579,1705877086693,-275.84078038,0.00042174,30]
[312445580,1705877086716,-555.69536749,0.00042186,30]
[312445581,1705877086739,-275.84078038,0.00042191,30]
[312445582,1705877086761,-275.84078038,0.00042191,30]
[312445583,1705877086784,-500.0,0.00042191,31]
[312445584,1705877086807,-2000.0,0.00042192,30]
[312445585,1705877086830,-555.69536749,0.00042197,30]
[312445586,1705877086853,-194.005696,0.00042315,30]
[312445587,1705877086876,-25000.0,0.00042345,30]
[312445588,1705877086899,-158.30001555,0.00042361,30]
[312445589,1705877086921,-500.0,0.00042465,31]
[312445590,1705877086944,-1000.0,0.000425,120]
[312445591,1705877086966,-339.86356035,0.00042739,31]
[312445592,1705877086989,-194.005696,0.00042825,30]
[312445593,1705877087012,-191.786092,0.00042825,30]
[312445594,1705877087034,-2000.0,0.00042877,45]
[312445595,1705877087056,-2500.0,0.00042877,30]
[312445596,1705877087078,-163.33223346,0.00042889,30]
[312445597,1705877087101,-332.17905463,0.0004298,30]
[312445598,1705877087123,-1000.0,0.00043,43]
[312445599,1705877087145,-483.7432725,0.00043,30]
[312445600,1705877087167,-786.96043734,0.00043,30]
[312445601,1705877087189,-540.46167202,0.00043,120]
[312445602,1705877087213,-1000.0,0.00043,120]
[312445603,1705877087237,-500.98133636,0.00043,30]
[312445604,1705877087262,-2132.0,0.00043,120]
[312445605,1705877087285,-1000.0,0.00043,43]
[312445606,1705877087308,-213.0,0.00043133,90]
[312445607,1705877087334,-150.0,0.00043326,30]
[312445608,1705877087356,-213.0,0.00043496,90]
[312445609,1705877087379,-3552.0,0.00043562,60]
[312445610,1705877087402,-228.16738127,0.000437,120]
[312445611,1705877087424,-1000.00000001,0.00043747,120]
[312445612,1705877087447,-1000.0,0.00044,44]
[312445613,1705877087470,-2000.0,0.00044,30]
[312445614,1705877087492,-1966.06774,0.00044,30]
[312445615,1705877087515,-90669.58669618,0.00044,30]
[312445616,1705877087538,-2000.0,0.00044088,30]
[312445617,1705877087560,-2000.0,0.00044088,30]
[312445618,1705877087583,-200.0,0.00044105,30]
[312445619,1705877087606,-200.0,0.00044105,30]
[312445620,1705877087633,-368.0,0.00044105,30]
[312445621,1705877087656,-2500.0,0.00044932,60]
[312445622,1705877087680,-150.5,0.0004497,30]
[312445623,1705877087702,-150.5,0.0004497,30]
[312445624,1705877087724,-244.0,0.0004497,30]
[312445625,1705877087747,-244.0,0.0004497,30]
[312445626,1705877087769,-150.5,0.0004497,30]
[312445627,1705877087806,-150.5,0.0004498,30]
[312445628,1705877087830,-150.5,0.0004498,30]
[312445629,1705877087854,-150.5,0.0004498,30]
[312445630,1705877087878,-244.0,0.0004498,30]
[312445631,1705877087902,-244.0,0.0004498,30]
[312445632,1705877087925,-244.0,0.0004498,30]
[312445633,1705877087949,-247.99,0.0004498,30]
[312445634,1705877087973,-283.24,0.0004498,30]
[312445635,1705877087997,-203.43,0.0004499,30]
[312445636,1705877088021,-150.5,0.0004499,30]
[312445637,1705877088045,-150.5,0.0004499,30]
[312445638,1705877088068,-150.5,0.0004499,30]
[312445639,1705877088091,-150.5,0.0004499,30]
[312445640,1705877088114,-244.32,0.0004499,30]
[312445641,1705877088139,-244.0,0.0004499,30]
[312445642,1705877088162,-244.0,0.0004499,30]
[312445643,1705877088187,-244.0,0.0004499,30]
[312445644,1705877088211,-244.0,0.0004499,30]
[312445645,1705877088234,-156.65,0.0004499,30]
[312445646,1705877088258,-417.16966305,0.00045,30]
[312445647,1705877088281,-1614.11660585,0.00045,60]
[312445648,1705877088304,-1003.3963065,0.00045,120]
[312445649,1705877088328,-200.0,0.00045,120]
[312445650,1705877088353,-1000.0,0.00045,45]
[312445651,1705877088376,-9924.31866773,0.00045,30]
[312445652,1705877088399,-1000.06,0.00045,30]
[312445653,1705877088422,-336.0,0.00045,30]
[312445654,1705877088446,-261.08589508,0.00045,120]
[312445655,1705877088469,-500.0,0.00045,120]
[312445656,1705877088635,-562.05691845,0.00045,120]
[312445657,1705877088659,-504.31327036,0.00045,120]
[312445658,1705877088683,-231.30500405,0.00045,120]
[312445659,1705877088710,-494.02612805,0.00045,120]
[312445660,1705877088735,-650.77046662,0.00045,120]
[312445661,1705877088759,-500.0,0.00045,120]
[312445662,1705877088784,-500.0,0.00045,120]
[312445663,1705877088808,-500.0,0.00045,120]
[312445664,1705877088832,-325.80221888,0.00045,120]
[312445665,1705877088856,-433.84697774,0.00045,120]
[312445666,1705877088879,-500.0,0.00045,120]
[312445667,1705877088904,-500.0,0.00045,120]
[312445668,1705877088928,-500.0,0.00045,120]
[312445669,1705877088952,-173.5387911,0.00045,120]
[312445670,1705877088975,-280.32088755,0.00045,120]
[312445671,1705877088999,-388.32052823,0.00045,120]
[312445672,1705877089023,-324.07917283,0.00045,120]
[312445673,1705877089046,-560.78075948,0.00045,120]
[312445674,1705877089069,-500.0,0.00045,120]
[312445675,1705877089092,-212.76835912,0.00045,120]
[312445676,1705877089117,-308.45801219,0.00045,120]
[312445677,1705877089140,-1000.0,0.00045399,120]
[312445678,1705877089164,-24493.40926272,0.000455,120]
[312445679,1705877094672,-400000.0,0.000455,120]
[312445680,1705877099004,-1237.42515973,0.0004,30]
[312445681,1705877099038,-398762.57484027,0.000455,120]
[312445682,1705877102415,-176744.01589701,0.000455,120]
[312445683,1705877102439,-223255.98410299,0.000455,120]
[312445684,1705877103984,928.0,0.0004331,31]
[312445685,1705877104306,928.0,0.0004331,32]
[312445686,1705877105579,-386.89175212,0.00045,30]
[312445687,1705877105605,-399613.10824788,0.000455,120]
[312445688,1705877110840,-3249.0,0.00042932,30]
[312445689,1705877110867,-90669.58669618,0.00044,30]
[312445690,1705877110894,-306081.41330382,0.000455,120]
[312445693,1705877199084,-154.75239617,0.00025107,4]
[312445694,1705877199104,-158.66587706,0.000257,2]
[312445719,1705877432401,-154.75239617,0.00024379,4]
[312445721,1705877432410,-5322.4661345,0.0002438,2]
[312445723,1705877432419,-167.269291,0.00024395,2]
[312445725,1705877432428,-168.54210373,0.00024655,7]
[312445727,1705877432437,-2638.0147363,0.00024809,2]
[312445729,1705877432446,-7379.86363499,0.00025699,2]
[312445731,1705877432456,-126.36165671,0.000257,2]
[312445733,1705877432464,-10052.7300466,0.000257,2]
[312445877,1705877438443,-245.98811228,0.000257,2]
[312445878,1705877438453,-4040.70896972,0.000257,2]
[312445879,1705877438462,-684.06765609,0.000257,2]
[312445880,1705877438471,-154.75239617,0.000257,2]
[312445881,1705877438481,-157.42490565,0.000257,2]
[312445882,1705877438490,-155.02455539,0.000257,2]
[312445883,1705877438499,-284167.77613123,0.000257,7]
[312445884,1705877438508,-3217.62703223,0.000257,2]
[312445885,1705877438517,-244.8464605,0.00025733,2]
[312445886,1705877438526,-5639.29393086,0.00026103,2]
[312445902,1705877441607,-9841.82869844,0.00026103,2]
[312445903,1705877441616,-222.066992,0.00026178,2]
[312445904,1705877441626,-302.78196323,0.00026573,2]
[312445905,1705877441635,-3458.15213898,0.00026573,5]
[312445906,1705877441644,-1582.66,0.00027387,3]
[312445907,1705877441653,-156.32295758,0.00027395,2]
[312445908,1705877441663,-4556.27620148,0.00027395,2]
[312445909,1705877441672,-7733.37900867,0.00027396,2]
[312445910,1705877441685,-2795.49836203,0.00027396,2]
[312445911,1705877441695,-500.0,0.00027397,2]
[312445912,1705877441704,-500.0,0.00027397,2]
[312445913,1705877441713,-500.0,0.00027397,2]
[312445914,1705877441722,-500.0,0.00027397,2]
[312445915,1705877441732,-500.0,0.00027397,2]
[312445916,1705877441741,-565.75700935,0.00027397,2]
[312445917,1705877441750,-500.0,0.00027397,2]
[312445918,1705877441759,-500.0,0.00027397,2]
[312445919,1705877441769,-500.0,0.00027397,2]
[312445920,1705877441778,-500.0,0.00027397,2]
[312445921,1705877441787,-151.53580206,0.00027397,2]
[312445922,1705877441796,-500.0,0.00027397,2]
[312445923,1705877441806,-500.0,0.00027397,2]
[312445924,1705877441814,-500.0,0.00027397,2]
[312445925,1705877441823,-500.0,0.00027397,2]
[312445926,1705877441833,-500.0,0.00027397,2]
[312445927,1705877441842,-572.63235025,0.00027397,2]
[312445928,1705877441856,-61.54764975,0.00027397,2]
[312445929,1705877441865,-500.0,0.00027397,2]
[312445930,1705877441875,-500.0,0.00027397,2]
[312445931,1705877441884,-500.0,0.00027397,2]
[312445932,1705877441895,-500.0,0.00027397,2]
[312445933,1705877441904,-500.0,0.00027397,2]
[312445934,1705877441913,-500.0,0.00027397,2]
[312445935,1705877441922,-500.0,0.00027397,2]
[312445936,1705877441931,-500.0,0.00027397,2]
[312445937,1705877441940,-500.0,0.00027397,2]
[312445938,1705877441948,-500.0,0.00027397,2]
[312445939,1705877441957,-500.0,0.00027397,2]
[312445940,1705877441966,-500.0,0.00027397,2]
[312445941,1705877441975,-500.0,0.00027397,2]
[312445942,1705877441984,-500.0,0.00027397,2]
[312445943,1705877441993,-500.0,0.00027397,2]
[312445944,1705877442002,-507.59096993,0.00027397,2]
[312445945,1705877442011,-500.0,0.00027397,2]
[312445946,1705877442020,-500.0,0.00027397,2]
[312445947,1705877442029,-1000.0,0.00027397,2]
[312445948,1705877442039,-521.75,0.00027397,2]
[312445949,1705877442048,-500.0,0.00027397,2]
[312445950,1705877442057,-500.0,0.00027397,2]
[312445951,1705877442066,-500.0,0.00027397,2]
[312445952,1705877442075,-500.0,0.00027397,2]
[312445953,1705877442084,-1359.06,0.00027397,2]
[312445954,1705877442093,-500.0,0.00027397,2]
[312445955,1705877442103,-234.05683702,0.00027397,2]
[312445956,1705877442113,-500.0,0.00027397,2]
[312445957,1705877442122,-500.0,0.00027397,2]
[312445958,1705877442131,-500.0,0.00027397,2]
[312445959,1705877442141,-678.77,0.00027397,2]
[312445960,1705877442151,-500.0,0.00027397,2]
[312445961,1705877442160,-500.0,0.00027397,2]
[312445962,1705877442169,-500.0,0.00027397,2]
[312445963,1705877442178,-500.0,0.00027397,2]
[312445964,1705877442187,-605.55,0.00027397,2]
[312445965,1705877442196,-500.0,0.00027397,2]
[312445966,1705877442205,-1000.0,0.00027397,2]
[312445967,1705877442214,-500.0,0.00027397,2]
[312445968,1705877442223,-500.0,0.00027397,2]
[312445969,1705877442232,-500.0,0.00027397,2]
[312445970,1705877442241,-500.0723576,0.00027397,2]
[312445971,1705877442250,-453.82432863,0.00027397,2]
[312445972,1705877442259,-686.45,0.00027397,2]
[312445973,1705877442269,-500.0,0.00027397,2]
[312445974,1705877442281,-500.0,0.00027397,2]
[312445975,1705877442290,-503.3727828,0.00027397,2]
[312445976,1705877442299,-500.0,0.00027397,2]
[312445977,1705877442308,-500.0,0.00027397,2]
[312445978,1705877442318,-500.0,0.00027397,2]
[312445979,1705877442327,-500.0,0.00027397,2]
[312445980,1705877442336,-500.0,0.00027397,2]
[312445981,1705877442346,-500.0,0.00027397,2]
[312445982,1705877442357,-500.0,0.00027397,2]
[312445983,1705877442367,-500.0,0.00027397,2]
[312445984,1705877442376,-500.0,0.00027397,2]
[312445985,1705877442385,-500.0,0.00027397,2]
[312445986,1705877442394,-500.0,0.00027397,2]
[312445987,1705877442403,-500.0,0.00027397,2]
[312445988,1705877442412,-500.0,0.00027397,2]
[312445989,1705877442421,-500.0,0.00027397,2]
[312445990,1705877442429,-500.0,0.00027397,2]
[312445991,1705877442438,-500.0,0.00027397,2]
[312445992,1705877442448,-500.0,0.00027397,2]
[312445993,1705877442457,-200.0,0.00027397,2]
[312445994,1705877442466,-500.0,0.00027397,2]
[312445995,1705877442475,-546.74,0.00027397,2]
[312445996,1705877442484,-219.39829432,0.00027397,2]
[312445997,1705877442494,-500.0,0.00027397,2]
[312445998,1705877442503,-432.79317174,0.00027397,2]
[312445999,1705877442528,-67.20682826,0.00027397,2]
[312446000,1705877442538,-500.0,0.00027397,2]
[312446001,1705877442548,-464.02860065,0.00027397,2]
[312446002,1705877442557,-500.0,0.00027397,2]
[312446003,1705877442566,-500.0,0.00027397,2]
[312446004,1705877442575,-500.0,0.00027397,2]
[312446005,1705877442584,-671.27,0.00027397,2]
[312446006,1705877442594,-500.0,0.00027397,2]
[312446007,1705877442603,-500.0,0.00027397,2]
[312446008,1705877442612,-500.0,0.00027397,2]
[312446009,1705877442621,-500.0,0.00027397,2]
[312446010,1705877442631,-500.0,0.00027397,2]
[312446011,1705877442640,-500.0,0.00027397,2]
[312446012,1705877442649,-500.0,0.00027397,2]
[312446013,1705877442658,-500.0,0.00027397,2]
[312446014,1705877442667,-500.0,0.00027397,2]
[312446015,1705877442676,-500.0,0.00027397,2]
[312446016,1705877442685,-186.61271067,0.00027397,2]
[312446017,1705877442694,-388.68371797,0.00027397,2]
[312446018,1705877442704,-500.0,0.00027397,2]
[312446019,1705877442713,-500.0,0.00027397,2]
[312446020,1705877442722,-500.0,0.00027397,2]
[312446021,1705877442731,-501.64392268,0.00027397,2]
[312446022,1705877442740,-500.0,0.00027397,2]
[312446023,1705877442749,-1449.48,0.00027397,2]
[312446024,1705877442758,-500.0,0.00027397,2]
[312446025,1705877442767,-500.0,0.00027397,2]
[312446026,1705877442776,-500.0,0.00027397,2]
[312446027,1705877442785,-1773.44,0.00027397,2]
[312446028,1705877442794,-500.0,0.00027397,2]
[312446029,1705877442803,-607.21258544,0.00027397,2]
[312446030,1705877442812,-500.0,0.00027397,2]
[312446031,1705877442821,-500.0,0.00027397,2]
[312446032,1705877442831,-919.02,0.00027397,2]
[312446033,1705877442840,-860.45,0.00027397,2]
[312446034,1705877442849,-500.0,0.00027397,2]
[312446035,1705877442858,-500.0,0.00027397,2]
[312446036,1705877442867,-524.61,0.00027397,2]
[312446037,1705877442876,-200.0,0.00027397,2]
[312446038,1705877442885,-500.0,0.00027397,2]
[312446039,1705877442894,-500.0,0.00027397,2]
[312446040,1705877442903,-500.0,0.00027397,2]
[312446041,1705877442912,-3722.03,0.00027397,2]
[312446042,1705877442922,-500.0,0.00027397,2]
[312446043,1705877442931,-15110.63,0.00027397,2]
[312446044,1705877442940,-523.78,0.00027397,2]
[312446045,1705877442949,-1339.19,0.00027397,2]
[312446046,1705877442959,-807.75,0.00027397,2]